[Event "*** Titled Tuesday Blitz"]
[Site "Chess.com"]
[Date "2020.11.24"]
[Round "8"]
[White "onnoelgersma"]
[Black "VladaSviridova"]
[Result "1-0"]
[WhiteElo "2409"]
[BlackElo "2284"]
[TimeControl "180+1"]
[EndTime "11:47:20 PST"]
[Termination "onnoelgersma won on time"]

1. d3 {[%clk 0:02:58.9]} 1... d5 {[%clk 0:02:59.7]} 2. Nf3 {[%clk 0:02:58.5]}
2... Nf6 {[%clk 0:03:00]} 3. g3 {[%clk 0:02:55.8]} 3... c6 {[%clk 0:02:59.1]} 4.
Bg2 {[%clk 0:02:56.3]} 4... Bf5 {[%clk 0:02:59.3]} 5. O-O {[%clk 0:02:56.6]}
5... e6 {[%clk 0:02:59.8]} 6. Nbd2 {[%clk 0:02:57.1]} 6... h6 {[%clk 0:03:00.1]}
7. b3 {[%clk 0:02:57.6]} 7... Be7 {[%clk 0:02:59.6]} 8. Bb2 {[%clk 0:02:58.2]}
8... O-O {[%clk 0:03:00.1]} 9. c4 {[%clk 0:02:58.8]} 9... a5 {[%clk 0:03:00.1]}
10. a3 {[%clk 0:02:59.1]} 10... Na6 {[%clk 0:03:00.4]} 11. Rc1 {[%clk
0:02:55.9]} 11... Bh7 {[%clk 0:02:59.9]} 12. Ne5 {[%clk 0:02:53.4]} 12... Bd6
{[%clk 0:02:57.9]} 13. Ndf3 {[%clk 0:02:49.6]} 13... Qe7 {[%clk 0:02:57.7]} 14.
Ra1 {[%clk 0:02:47.4]} 14... Rfd8 {[%clk 0:02:54.5]} 15. h3 {[%clk 0:02:38.4]}
15... Rac8 {[%clk 0:02:26.9]} 16. Qd2 {[%clk 0:02:23.3]} 16... Nc5 {[%clk
0:02:21.7]} 17. Qc2 {[%clk 0:02:19.4]} 17... Ncd7 {[%clk 0:01:57.9]} 18. Nxd7
{[%clk 0:02:12.9]} 18... Nxd7 {[%clk 0:01:50.8]} 19. Qd2 {[%clk 0:01:51.8]}
19... b6 {[%clk 0:01:46.8]} 20. Ne1 {[%clk 0:01:38.2]} 20... Be5 {[%clk
0:01:34.8]} 21. Bxe5 {[%clk 0:01:28.8]} 21... Nxe5 {[%clk 0:01:34.2]} 22. Qe3
{[%clk 0:01:29]} 22... Qf6 {[%clk 0:01:28.8]} 23. Rc1 {[%clk 0:01:10.1]} 23...
d4 {[%clk 0:01:25.6]} 24. Qd2 {[%clk 0:01:07.8]} 24... c5 {[%clk 0:01:25.5]} 25.
b4 {[%clk 0:01:01.3]} 25... axb4 {[%clk 0:01:19.6]} 26. axb4 {[%clk 0:01:02.2]}
26... Nc6 {[%clk 0:01:00.6]} 27. Nc2 {[%clk 0:00:52.6]} 27... Qe7 {[%clk
0:00:48.9]} 28. Rb1 {[%clk 0:00:43.4]} 28... cxb4 {[%clk 0:00:31.4]} 29. Nxb4
{[%clk 0:00:42.9]} 29... Na5 {[%clk 0:00:29.2]} 30. Rfc1 {[%clk 0:00:31]} 30...
Bf5 {[%clk 0:00:24]} 31. Kh2 {[%clk 0:00:29]} 31... Qd6 {[%clk 0:00:18.9]} 32.
Qf4 {[%clk 0:00:23.2]} 32... Qxf4 {[%clk 0:00:17.7]} 33. gxf4 {[%clk 0:00:24.1]}
33... Rb8 {[%clk 0:00:15.5]} 34. Nc6 {[%clk 0:00:20.1]} 34... Nxc6 {[%clk
0:00:14.8]} 35. Bxc6 {[%clk 0:00:21]} 35... g5 {[%clk 0:00:13.8]} 36. fxg5
{[%clk 0:00:19.2]} 36... hxg5 {[%clk 0:00:14.7]} 37. Bg2 {[%clk 0:00:18.9]}
37... f6 {[%clk 0:00:14.2]} 38. Rb4 {[%clk 0:00:17.4]} 38... Kg7 {[%clk
0:00:14.1]} 39. Rcb1 {[%clk 0:00:17.2]} 39... e5 {[%clk 0:00:12.9]} 40. Rxb6
{[%clk 0:00:16.8]} 40... Rxb6 {[%clk 0:00:12.7]} 41. Rxb6 {[%clk 0:00:17.7]}
41... Rc8 {[%clk 0:00:12.4]} 42. Bd5 {[%clk 0:00:17.3]} 42... Kg6 {[%clk
0:00:11.7]} 43. Rb7 {[%clk 0:00:16.9]} 43... Rh8 {[%clk 0:00:11.2]} 44. Bg2
{[%clk 0:00:15.7]} 44... g4 {[%clk 0:00:10.4]} 45. Kg3 {[%clk 0:00:13.2]} 45...
gxh3 {[%clk 0:00:10.3]} 46. Bh1 {[%clk 0:00:13.3]} 46... h2 {[%clk 0:00:10.2]}
47. f3 {[%clk 0:00:12.5]} 47... Rh3+ {[%clk 0:00:09]} 48. Kf2 {[%clk 0:00:12.6]}
48... Rh8 {[%clk 0:00:08.4]} 49. c5 {[%clk 0:00:12.4]} 49... Rc8 {[%clk
0:00:08.1]} 50. Rb5 {[%clk 0:00:11.9]} 50... Bd7 {[%clk 0:00:07.8]} 51. Ra5
{[%clk 0:00:12.4]} 51... Rb8 {[%clk 0:00:07.1]} 52. Kg3 {[%clk 0:00:12.5]} 52...
Rb2 {[%clk 0:00:07]} 53. Kxh2 {[%clk 0:00:12.7]} 53... Rxe2+ {[%clk 0:00:06.3]}
54. Kg3 {[%clk 0:00:13.2]} 54... Bc6 {[%clk 0:00:06.2]} 55. Ra6 {[%clk
0:00:12.7]} 55... Bd5 {[%clk 0:00:06.5]} 56. Rd6 {[%clk 0:00:11.8]} 56... Bb7
{[%clk 0:00:06.4]} 57. c6 {[%clk 0:00:12.1]} 57... Bc8 {[%clk 0:00:06.2]} 58. c7
{[%clk 0:00:12.1]} 58... Rc2 {[%clk 0:00:05.7]} 59. f4 {[%clk 0:00:12.5]} 59...
exf4+ {[%clk 0:00:05.2]} 60. Kxf4 {[%clk 0:00:13]} 60... Bh3 {[%clk 0:00:04.8]}
61. Be4+ {[%clk 0:00:12.2]} 61... Kf7 {[%clk 0:00:03.2]} 62. Bc6 {[%clk
0:00:12.2]} 62... Bc8 {[%clk 0:00:01.9]} 63. Be4 {[%clk 0:00:07]} 63... Ke7
{[%clk 0:00:01.6]} 64. Rxd4 {[%clk 0:00:07.3]} 1-0

[Event "*** Titled Tuesday Blitz"]
[Site "Chess.com"]
[Date "2020.11.24"]
[Round "8"]
[White "TST2014"]
[Black "GMKrikor"]
[Result "1-0"]
[WhiteElo "2521"]
[BlackElo "2704"]
[TimeControl "180+1"]
[EndTime "11:47:21 PST"]
[Termination "TST2014 won by checkmate"]

1. d4 {[%clk 0:03:00.9]} 1... Nf6 {[%clk 0:02:59.6]} 2. c4 {[%clk 0:03:00.1]}
2... g6 {[%clk 0:02:59.9]} 3. Nc3 {[%clk 0:02:59.8]} 3... d5 {[%clk 0:03:00.6]}
4. Nf3 {[%clk 0:02:59.4]} 4... Bg7 {[%clk 0:02:59.4]} 5. Bg5 {[%clk 0:02:59.5]}
5... dxc4 {[%clk 0:02:57.9]} 6. e4 {[%clk 0:02:58.4]} 6... c5 {[%clk 0:02:58.1]}
7. d5 {[%clk 0:02:58.1]} 7... b5 {[%clk 0:02:58.7]} 8. d6 {[%clk 0:02:58.3]}
8... Bb7 {[%clk 0:02:58.2]} 9. e5 {[%clk 0:02:57.4]} 9... Ne4 {[%clk 0:02:58.4]}
10. Nxe4 {[%clk 0:02:32.9]} 10... Bxe4 {[%clk 0:02:59.3]} 11. a4 {[%clk
0:02:33]} 11... a6 {[%clk 0:02:58.4]} 12. axb5 {[%clk 0:02:31.8]} 12... axb5
{[%clk 0:02:58]} 13. Bxe7 {[%clk 0:02:29.1]} 13... Qd7 {[%clk 0:02:35.6]} 14.
Rxa8 {[%clk 0:02:15.8]} 14... Bxa8 {[%clk 0:02:36.5]} 15. Be2 {[%clk 0:02:04.5]}
15... Nc6 {[%clk 0:02:27.3]} 16. Qd5 {[%clk 0:01:54]} 16... Bb7 {[%clk
0:01:59.1]} 17. Qxc5 {[%clk 0:01:46]} 17... Nxe7 {[%clk 0:01:56]} 18. dxe7
{[%clk 0:01:45.6]} 18... Qc6 {[%clk 0:01:49.2]} 19. Qb4 {[%clk 0:01:24.5]} 19...
f6 {[%clk 0:01:32.2]} 20. O-O {[%clk 0:01:07.4]} 20... fxe5 {[%clk 0:01:18.1]}
21. Rd1 {[%clk 0:01:06.9]} 21... Bf6 {[%clk 0:01:18.5]} 22. Rd8+ {[%clk
0:01:02.5]} 22... Kf7 {[%clk 0:01:18.3]} 23. Rf8+ {[%clk 0:00:53.7]} 23... Kg7
{[%clk 0:01:18.6]} 24. Bf1 {[%clk 0:00:30.9]} 24... e4 {[%clk 0:00:57.5]} 25.
e8=Q {[%clk 0:00:20.1]} 25... Qxe8 {[%clk 0:00:56.9]} 26. Rxe8 {[%clk
0:00:20.4]} 26... Rxe8 {[%clk 0:00:57.8]} 27. Ne1 {[%clk 0:00:18.2]} 27... Re5
{[%clk 0:00:44.8]} 28. Qd6 {[%clk 0:00:17]} 28... e3 {[%clk 0:00:43.1]} 29. fxe3
{[%clk 0:00:13.7]} 29... Rxe3 {[%clk 0:00:41.1]} 30. Qd7+ {[%clk 0:00:13.5]}
30... Re7 {[%clk 0:00:41]} 31. Qxb5 {[%clk 0:00:13.8]} 31... Ba8 {[%clk
0:00:14.3]} 32. Nf3 {[%clk 0:00:13.6]} 32... Rc7 {[%clk 0:00:10.2]} 33. Bxc4
{[%clk 0:00:12.5]} 33... Bc6 {[%clk 0:00:10.7]} 34. Qc5 {[%clk 0:00:10.8]} 34...
Rc8 {[%clk 0:00:08.9]} 35. b4 {[%clk 0:00:10.1]} 35... Bd7 {[%clk 0:00:08.4]}
36. Qa7 {[%clk 0:00:09.3]} 36... Rxc4 {[%clk 0:00:06.4]} 37. Qxd7+ {[%clk
0:00:08.8]} 37... Kh6 {[%clk 0:00:07.3]} 38. Qd2+ {[%clk 0:00:08.9]} 38... Kg7
{[%clk 0:00:07]} 39. b5 {[%clk 0:00:09.4]} 39... Rc5 {[%clk 0:00:05.9]} 40. Qd7+
{[%clk 0:00:09.2]} 40... Kh6 {[%clk 0:00:05.7]} 41. Qd6 {[%clk 0:00:09.7]} 41...
Rc1+ {[%clk 0:00:04.6]} 42. Kf2 {[%clk 0:00:10.2]} 42... Rc2+ {[%clk 0:00:05.1]}
43. Kg3 {[%clk 0:00:09.7]} 43... Kg7 {[%clk 0:00:04.2]} 44. Qd7+ {[%clk
0:00:08.6]} 44... Kh6 {[%clk 0:00:04.1]} 45. Qe6 {[%clk 0:00:07.3]} 45... Kg7
{[%clk 0:00:03.8]} 46. b6 {[%clk 0:00:06.6]} 46... Rb2 {[%clk 0:00:04.4]} 47.
Qd7+ {[%clk 0:00:06.4]} 47... Kh6 {[%clk 0:00:04.9]} 48. b7 {[%clk 0:00:06.6]}
48... Rb3 {[%clk 0:00:05.1]} 49. Qd2+ {[%clk 0:00:04.9]} 49... Kg7 {[%clk
0:00:04.9]} 50. Qd6 {[%clk 0:00:05.3]} 50... Kh6 {[%clk 0:00:05.6]} 51. Qxf6
{[%clk 0:00:04.9]} 51... Rxb7 {[%clk 0:00:05.5]} 52. Qf8+ {[%clk 0:00:05]} 52...
Kh5 {[%clk 0:00:05]} 53. Qf6 {[%clk 0:00:04.8]} 53... Kh6 {[%clk 0:00:04.9]} 54.
Qf4+ {[%clk 0:00:04.6]} 54... Kg7 {[%clk 0:00:05]} 55. Qd4+ {[%clk 0:00:05]}
55... Kh6 {[%clk 0:00:05.6]} 56. h4 {[%clk 0:00:05.7]} 56... Rb5 {[%clk
0:00:02.2]} 57. Ng5 {[%clk 0:00:05.6]} 57... Rb3+ {[%clk 0:00:01.7]} 58. Kg4
{[%clk 0:00:05.7]} 58... Rg3+ {[%clk 0:00:01.9]} 59. Kxg3 {[%clk 0:00:04.8]}
59... Kh5 {[%clk 0:00:02.5]} 60. Qg4+ {[%clk 0:00:05.4]} 60... Kh6 {[%clk
0:00:02.6]} 61. Nf3 {[%clk 0:00:05.7]} 61... Kg7 {[%clk 0:00:02.4]} 62. Qd7+
{[%clk 0:00:06.2]} 62... Kh6 {[%clk 0:00:02.7]} 63. Qe7 {[%clk 0:00:06.7]} 63...
g5 {[%clk 0:00:02.5]} 64. Qxg5# {[%clk 0:00:06.8]} 1-0

[Event "*** Titled Tuesday Blitz"]
[Site "Chess.com"]
[Date "2020.11.24"]
[Round "8"]
[White "vovachesss"]
[Black "sorrm8thatscheckm8"]
[Result "1/2-1/2"]
[WhiteElo "2663"]
[BlackElo "2508"]
[TimeControl "180+1"]
[EndTime "11:47:23 PST"]
[Termination "Game drawn - insufficient material"]

1. e4 {[%clk 0:03:00.9]} 1... e6 {[%clk 0:02:59.6]} 2. Qe2 {[%clk 0:03:00.3]}
2... Be7 {[%clk 0:02:57]} 3. Nf3 {[%clk 0:02:59.6]} 3... d5 {[%clk 0:02:57.5]}
4. d3 {[%clk 0:02:59.6]} 4... Nf6 {[%clk 0:02:57.5]} 5. g3 {[%clk 0:02:59.5]}
5... O-O {[%clk 0:02:57.9]} 6. Bg2 {[%clk 0:02:56.9]} 6... c5 {[%clk 0:02:58.3]}
7. O-O {[%clk 0:02:54.5]} 7... Nc6 {[%clk 0:02:56.5]} 8. c3 {[%clk 0:02:54.8]}
8... b5 {[%clk 0:02:56.5]} 9. a4 {[%clk 0:02:51.4]} 9... Rb8 {[%clk 0:02:43.4]}
10. Bf4 {[%clk 0:02:47.1]} 10... Rb6 {[%clk 0:02:35.7]} 11. axb5 {[%clk
0:02:43.7]} 11... Rxb5 {[%clk 0:02:33.8]} 12. Na3 {[%clk 0:02:44.3]} 12... Rb6
{[%clk 0:02:29.3]} 13. exd5 {[%clk 0:02:35]} 13... exd5 {[%clk 0:02:28]} 14.
Rfe1 {[%clk 0:02:24.9]} 14... Re8 {[%clk 0:02:23.6]} 15. Qc2 {[%clk 0:01:51.5]}
15... h6 {[%clk 0:02:19.4]} 16. Ne5 {[%clk 0:01:48.2]} 16... Nxe5 {[%clk
0:02:07.7]} 17. Bxe5 {[%clk 0:01:44.3]} 17... Bf5 {[%clk 0:02:06]} 18. Qa4
{[%clk 0:01:09.7]} 18... Rxb2 {[%clk 0:01:41.7]} 19. Bxf6 {[%clk 0:00:51.3]}
19... gxf6 {[%clk 0:01:40.3]} 20. Re3 {[%clk 0:00:42.6]} 20... Be6 {[%clk
0:01:30.2]} 21. Rae1 {[%clk 0:00:36.2]} 21... Rb7 {[%clk 0:01:07.5]} 22. Rxe6
{[%clk 0:00:27.7]} 22... fxe6 {[%clk 0:01:05.1]} 23. Qg4+ {[%clk 0:00:27.8]}
23... Kh8 {[%clk 0:00:59.8]} 24. Qxe6 {[%clk 0:00:25.7]} 24... Rb6 {[%clk
0:00:48.4]} 25. Qf7 {[%clk 0:00:23.5]} 25... f5 {[%clk 0:00:38.6]} 26. Qxf5
{[%clk 0:00:14.8]} 26... Rf8 {[%clk 0:00:29.3]} 27. Qh5 {[%clk 0:00:11.2]} 27...
c4 {[%clk 0:00:26.6]} 28. Nc2 {[%clk 0:00:04.3]} 28... cxd3 {[%clk 0:00:26.2]}
29. Nd4 {[%clk 0:00:05]} 29... d2 {[%clk 0:00:25.8]} 30. Rd1 {[%clk 0:00:05.3]}
30... Bg5 {[%clk 0:00:21.8]} 31. f4 {[%clk 0:00:05]} 31... Bf6 {[%clk
0:00:21.5]} 32. Rxd2 {[%clk 0:00:05.2]} 32... Bxd4+ {[%clk 0:00:21.2]} 33. Rxd4
{[%clk 0:00:05.4]} 33... Qe8 {[%clk 0:00:20.5]} 34. Qxe8 {[%clk 0:00:04.7]}
34... Rxe8 {[%clk 0:00:21.4]} 35. Bxd5 {[%clk 0:00:05.3]} 35... Rc8 {[%clk
0:00:20.1]} 36. c4 {[%clk 0:00:04.3]} 36... a5 {[%clk 0:00:20.2]} 37. Rd3 {[%clk
0:00:04]} 37... a4 {[%clk 0:00:19.8]} 38. Ra3 {[%clk 0:00:04.5]} 38... Rb4
{[%clk 0:00:19.8]} 39. Kf2 {[%clk 0:00:04.6]} 39... Rc5 {[%clk 0:00:20]} 40. Ke3
{[%clk 0:00:04.7]} 40... Ra5 {[%clk 0:00:19.9]} 41. Kd4 {[%clk 0:00:04]} 41...
Kg7 {[%clk 0:00:19.3]} 42. Kc3 {[%clk 0:00:03.7]} 42... Rb1 {[%clk 0:00:17.2]}
43. Be4 {[%clk 0:00:03.9]} 43... Re1 {[%clk 0:00:14.8]} 44. Bc2 {[%clk 0:00:04]}
44... Re3+ {[%clk 0:00:12.4]} 45. Kb4 {[%clk 0:00:04.5]} 45... Rxa3 {[%clk
0:00:12.1]} 46. Kxa3 {[%clk 0:00:05.4]} 46... Kf6 {[%clk 0:00:12.6]} 47. Bxa4
{[%clk 0:00:04.9]} 47... Kf5 {[%clk 0:00:09.2]} 48. Kb4 {[%clk 0:00:05.3]} 48...
Ra7 {[%clk 0:00:09.8]} 49. c5 {[%clk 0:00:05.4]} 49... Kg4 {[%clk 0:00:09.2]}
50. c6 {[%clk 0:00:05]} 50... Kh3 {[%clk 0:00:09.3]} 51. Kc5 {[%clk 0:00:05.3]}
51... Kxh2 {[%clk 0:00:09.5]} 52. Bb5 {[%clk 0:00:03.7]} 52... Kxg3 {[%clk
0:00:08.8]} 53. f5 {[%clk 0:00:04.2]} 53... Kf4 {[%clk 0:00:07.3]} 54. Bd3
{[%clk 0:00:04.8]} 54... Ke5 {[%clk 0:00:05.6]} 55. Kb6 {[%clk 0:00:05.1]} 55...
Rf7 {[%clk 0:00:03]} 56. c7 {[%clk 0:00:05.2]} 56... Rxc7 {[%clk 0:00:03.5]} 57.
Kxc7 {[%clk 0:00:05.7]} 57... h5 {[%clk 0:00:04.4]} 58. Bf1 {[%clk 0:00:02.9]}
58... Kxf5 {[%clk 0:00:03.7]} 59. Bh3+ {[%clk 0:00:02.8]} 59... Kf4 {[%clk
0:00:04.6]} 60. Bd7 {[%clk 0:00:03.3]} 60... h4 {[%clk 0:00:05.5]} 61. Bc8
{[%clk 0:00:04.2]} 61... Kg3 {[%clk 0:00:05.9]} 62. Bd7 {[%clk 0:00:04.5]} 62...
h3 {[%clk 0:00:06.8]} 63. Bxh3 {[%clk 0:00:05.2]} 1/2-1/2

[Event "*** Titled Tuesday Blitz"]
[Site "Chess.com"]
[Date "2020.11.24"]
[Round "8"]
[White "Jumbo"]
[Black "Astaneh"]
[Result "1-0"]
[WhiteElo "2841"]
[BlackElo "2618"]
[TimeControl "180+1"]
[EndTime "11:47:24 PST"]
[Termination "Jumbo won by resignation"]

1. d4 {[%clk 0:03:00.9]} 1... Nf6 {[%clk 0:02:57.9]} 2. Bf4 {[%clk 0:03:00.6]}
2... b6 {[%clk 0:02:54.2]} 3. c4 {[%clk 0:02:59.3]} 3... Bb7 {[%clk 0:02:53]} 4.
Nc3 {[%clk 0:02:58.8]} 4... e6 {[%clk 0:02:53.3]} 5. a3 {[%clk 0:02:58.8]} 5...
Be7 {[%clk 0:02:46.3]} 6. Nf3 {[%clk 0:02:48]} 6... Bxf3 {[%clk 0:02:37.8]} 7.
gxf3 {[%clk 0:02:47.5]} 7... Nc6 {[%clk 0:02:36.7]} 8. d5 {[%clk 0:02:46]} 8...
exd5 {[%clk 0:02:23.9]} 9. cxd5 {[%clk 0:02:46.9]} 9... Na5 {[%clk 0:02:22.8]}
10. Nb5 {[%clk 0:02:20.7]} 10... d6 {[%clk 0:02:00.1]} 11. e4 {[%clk 0:02:18.2]}
11... O-O {[%clk 0:01:58.2]} 12. b4 {[%clk 0:02:17]} 12... c6 {[%clk 0:01:13.6]}
13. Nc3 {[%clk 0:02:03.2]} 13... cxd5 {[%clk 0:01:13.8]} 14. bxa5 {[%clk
0:02:03.2]} 14... dxe4 {[%clk 0:01:13]} 15. fxe4 {[%clk 0:01:45.6]} 15... Rc8
{[%clk 0:01:10.8]} 16. Rc1 {[%clk 0:01:40.9]} 16... d5 {[%clk 0:00:56.6]} 17.
Ba6 {[%clk 0:01:26.4]} 17... Rc5 {[%clk 0:00:48.9]} 18. O-O {[%clk 0:00:53.5]}
18... Rxa5 {[%clk 0:00:39.3]} 19. Bb7 {[%clk 0:00:53.2]} 19... Bxa3 {[%clk
0:00:36.5]} 20. Rc2 {[%clk 0:00:41.6]} 20... d4 {[%clk 0:00:21.6]} 21. e5 {[%clk
0:00:20.3]} 21... Qb8 {[%clk 0:00:07.9]} 22. Qf3 {[%clk 0:00:17.8]} 22... Nh5
{[%clk 0:00:03]} 23. Qxh5 {[%clk 0:00:16.3]} 23... dxc3 {[%clk 0:00:03.2]} 24.
Be4 {[%clk 0:00:16.6]} 24... g6 {[%clk 0:00:02.8]} 25. Qf3 {[%clk 0:00:15.8]}
25... Bb2 {[%clk 0:00:03.1]} 26. Rd1 {[%clk 0:00:15.4]} 26... Re8 {[%clk
0:00:03.6]} 27. Rd7 {[%clk 0:00:14.6]} 27... Rf8 {[%clk 0:00:03.1]} 28. Bd5
{[%clk 0:00:14]} 28... Qe8 {[%clk 0:00:02.2]} 29. Rc7 {[%clk 0:00:05.7]} 29...
Qd8 {[%clk 0:00:02.6]} 30. e6 {[%clk 0:00:05.2]} 30... Qxd5 {[%clk 0:00:02]} 31.
Qxd5 {[%clk 0:00:01.9]} 31... Rxd5 {[%clk 0:00:02.9]} 32. Bh6 {[%clk 0:00:02.1]}
32... Rd1+ {[%clk 0:00:01.6]} 33. Kg2 {[%clk 0:00:02]} 33... fxe6 {[%clk
0:00:02.5]} 34. Bxf8 {[%clk 0:00:01.8]} 34... Kxf8 {[%clk 0:00:03.4]} 35. Rxh7
{[%clk 0:00:02.1]} 35... Rd2 {[%clk 0:00:03.9]} 36. Rxd2 {[%clk 0:00:02.3]}
36... cxd2 {[%clk 0:00:04.8]} 37. Rd7 {[%clk 0:00:02.6]} 37... Bc3 {[%clk
0:00:05.4]} 38. Kf3 {[%clk 0:00:03]} 38... a5 {[%clk 0:00:05.4]} 39. Ke2 {[%clk
0:00:03.6]} 39... a4 {[%clk 0:00:06]} 40. Rc7 {[%clk 0:00:04.1]} 40... Bb4
{[%clk 0:00:05.4]} 41. Rc4 {[%clk 0:00:04.3]} 41... Ba5 {[%clk 0:00:04]} 42.
Rxa4 {[%clk 0:00:04.7]} 42... Kf7 {[%clk 0:00:04.9]} 43. Rg4 {[%clk 0:00:04.8]}
43... Kf6 {[%clk 0:00:05.2]} 44. h4 {[%clk 0:00:04.5]} 44... Kf5 {[%clk
0:00:05.6]} 45. Rg5+ {[%clk 0:00:04.7]} 45... Kf6 {[%clk 0:00:06.2]} 46. Rb5
{[%clk 0:00:04.6]} 46... e5 {[%clk 0:00:06]} 47. f3 {[%clk 0:00:04.5]} 47... Kf5
{[%clk 0:00:06.4]} 48. Rb3 {[%clk 0:00:03.7]} 48... Kf4 {[%clk 0:00:06]} 49. Rd3
{[%clk 0:00:03.2]} 49... Kf5 {[%clk 0:00:05.9]} 50. Rd6 {[%clk 0:00:03]} 50...
e4 {[%clk 0:00:02.2]} 51. Rd5+ {[%clk 0:00:02.8]} 51... Kf4 {[%clk 0:00:02.5]}
52. fxe4 {[%clk 0:00:03.1]} 52... Kxe4 {[%clk 0:00:02.8]} 53. Rg5 {[%clk
0:00:03.7]} 53... Kd4 {[%clk 0:00:02.3]} 54. Rxg6 {[%clk 0:00:03.4]} 54... Kc3
{[%clk 0:00:03.2]} 55. Kd1 {[%clk 0:00:03.8]} 55... b5 {[%clk 0:00:03.3]} 56. h5
{[%clk 0:00:03.8]} 56... b4 {[%clk 0:00:03.5]} 57. h6 {[%clk 0:00:03.4]} 57...
b3 {[%clk 0:00:03.8]} 58. h7 {[%clk 0:00:03.4]} 58... Kb2 {[%clk 0:00:03.3]} 59.
h8=Q+ {[%clk 0:00:03.5]} 59... Bc3 {[%clk 0:00:04.2]} 60. Qh3 {[%clk 0:00:03.2]}
60... Bb4 {[%clk 0:00:03.4]} 61. Rb6 {[%clk 0:00:03.4]} 61... Ka3 {[%clk
0:00:03.7]} 62. Rxb4 {[%clk 0:00:02.8]} 62... Kxb4 {[%clk 0:00:04]} 63. Kxd2
{[%clk 0:00:03.3]} 63... Ka3 {[%clk 0:00:04.9]} 64. Qc3 {[%clk 0:00:03.5]} 64...
Ka2 {[%clk 0:00:05.8]} 65. Kc1 {[%clk 0:00:03.8]} 1-0

[Event "*** Titled Tuesday Blitz"]
[Site "Chess.com"]
[Date "2020.11.24"]
[Round "8"]
[White "rugbyclub"]
[Black "keepitcoming"]
[Result "1/2-1/2"]
[WhiteElo "2188"]
[BlackElo "2362"]
[TimeControl "180+1"]
[EndTime "11:47:25 PST"]
[Termination "Game drawn by repetition"]

1. d4 {[%clk 0:02:57.9]} 1... d5 {[%clk 0:02:59.4]} 2. Bf4 {[%clk 0:02:56.6]}
2... Nf6 {[%clk 0:02:58.7]} 3. e3 {[%clk 0:02:56.7]} 3... Bf5 {[%clk 0:02:58.2]}
4. c4 {[%clk 0:02:56.6]} 4... e6 {[%clk 0:02:58.2]} 5. Nc3 {[%clk 0:02:56.5]}
5... Bd6 {[%clk 0:02:52.9]} 6. Bg3 {[%clk 0:02:48.2]} 6... O-O {[%clk
0:02:51.2]} 7. Nf3 {[%clk 0:02:40.8]} 7... c5 {[%clk 0:02:38.4]} 8. dxc5 {[%clk
0:02:26.6]} 8... Bxc5 {[%clk 0:02:23.8]} 9. Nh4 {[%clk 0:02:26.4]} 9... Bg4
{[%clk 0:02:20.7]} 10. Qc2 {[%clk 0:02:25.8]} 10... d4 {[%clk 0:02:16.5]} 11.
exd4 {[%clk 0:02:19.4]} 11... Qxd4 {[%clk 0:02:08.7]} 12. Nb5 {[%clk 0:02:03.1]}
12... Bb4+ {[%clk 0:02:05.1]} 13. Nc3 {[%clk 0:01:58.6]} 13... Ne4 {[%clk
0:01:57.7]} 14. Bd3 {[%clk 0:01:58.2]} 14... Nxc3 {[%clk 0:01:52.9]} 15. O-O
{[%clk 0:01:50.7]} 15... Na4 {[%clk 0:01:06.4]} 16. Bxh7+ {[%clk 0:01:31.7]}
16... Kh8 {[%clk 0:01:05.3]} 17. Qxa4 {[%clk 0:01:32.3]} 17... Nc6 {[%clk
0:01:01.5]} 18. a3 {[%clk 0:01:20.7]} 18... Be7 {[%clk 0:00:53.5]} 19. Qc2
{[%clk 0:01:20.5]} 19... Rac8 {[%clk 0:00:35.8]} 20. b3 {[%clk 0:01:12]} 20...
Bh5 {[%clk 0:00:34.2]} 21. Be4 {[%clk 0:01:10.7]} 21... f5 {[%clk 0:00:24]} 22.
Nf3 {[%clk 0:01:10.6]} 22... Qxe4 {[%clk 0:00:22.6]} 23. Qxe4 {[%clk 0:01:09.3]}
23... fxe4 {[%clk 0:00:23.5]} 24. Ne5 {[%clk 0:01:09.9]} 24... Nxe5 {[%clk
0:00:22.8]} 25. Bxe5 {[%clk 0:01:10.6]} 25... Bf6 {[%clk 0:00:23.4]} 26. Bd6
{[%clk 0:01:10.3]} 26... Bxa1 {[%clk 0:00:21.6]} 27. Bxf8 {[%clk 0:01:10.4]}
27... Rxf8 {[%clk 0:00:17.7]} 28. Rxa1 {[%clk 0:01:10.7]} 28... Rd8 {[%clk
0:00:17.7]} 29. Rc1 {[%clk 0:01:05.5]} 29... Rd3 {[%clk 0:00:17]} 30. b4 {[%clk
0:01:04.7]} 30... Rd1+ {[%clk 0:00:16.9]} 31. Rxd1 {[%clk 0:01:03.7]} 31... Bxd1
{[%clk 0:00:17.8]} 32. Kf1 {[%clk 0:01:04.2]} 32... Kg8 {[%clk 0:00:15.7]} 33.
Ke1 {[%clk 0:01:04.4]} 33... Bb3 {[%clk 0:00:16.3]} 34. c5 {[%clk 0:01:03.3]}
34... Kf7 {[%clk 0:00:16.5]} 35. Kd2 {[%clk 0:01:03.8]} 35... Kf6 {[%clk
0:00:16.1]} 36. Ke3 {[%clk 0:01:04.4]} 36... Bc2 {[%clk 0:00:16.1]} 37. Kd4
{[%clk 0:01:02.7]} 37... e5+ {[%clk 0:00:12.6]} 38. Kd5 {[%clk 0:01:02.4]} 38...
Bb3+ {[%clk 0:00:11.6]} 39. Kd6 {[%clk 0:01:02.3]} 39... Ba4 {[%clk 0:00:11.9]}
40. h4 {[%clk 0:00:55]} 40... Bc6 {[%clk 0:00:11.9]} 41. Kc7 {[%clk 0:00:49.5]}
41... a6 {[%clk 0:00:10.5]} 42. a4 {[%clk 0:00:45]} 42... e3 {[%clk 0:00:10]}
43. fxe3 {[%clk 0:00:44]} 43... Bxg2 {[%clk 0:00:10.4]} 44. b5 {[%clk
0:00:44.4]} 44... axb5 {[%clk 0:00:09.8]} 45. axb5 {[%clk 0:00:43.6]} 45... Kf5
{[%clk 0:00:09.5]} 46. c6 {[%clk 0:00:42.7]} 46... bxc6 {[%clk 0:00:09.1]} 47.
bxc6 {[%clk 0:00:41.3]} 47... Kg4 {[%clk 0:00:06.4]} 48. Kd6 {[%clk 0:00:38.3]}
48... Bxc6 {[%clk 0:00:05.8]} 49. Kxc6 {[%clk 0:00:38.1]} 49... Kf3 {[%clk
0:00:05.4]} 50. Kd6 {[%clk 0:00:19.4]} 50... e4 {[%clk 0:00:05.3]} 51. Ke6
{[%clk 0:00:19.5]} 51... Kxe3 {[%clk 0:00:05.3]} 52. Kf7 {[%clk 0:00:20]} 52...
Kf2 {[%clk 0:00:05.6]} 53. Kxg7 {[%clk 0:00:19.6]} 53... e3 {[%clk 0:00:06.1]}
54. h5 {[%clk 0:00:20.3]} 54... e2 {[%clk 0:00:06.6]} 55. h6 {[%clk 0:00:21]}
55... e1=Q {[%clk 0:00:07.4]} 56. h7 {[%clk 0:00:21.6]} 56... Qe7+ {[%clk
0:00:07.3]} 57. Kg8 {[%clk 0:00:19.9]} 57... Qe6+ {[%clk 0:00:07.5]} 58. Kg7
{[%clk 0:00:20]} 58... Qe5+ {[%clk 0:00:07.1]} 59. Kg8 {[%clk 0:00:19.7]} 59...
Qg3+ {[%clk 0:00:07.5]} 60. Kf8 {[%clk 0:00:18.6]} 60... Qf4+ {[%clk 0:00:07.8]}
61. Kg8 {[%clk 0:00:18.7]} 61... Qg5+ {[%clk 0:00:08.1]} 62. Kf8 {[%clk
0:00:17.6]} 62... Qh6+ {[%clk 0:00:08.1]} 63. Kg8 {[%clk 0:00:17.3]} 63... Qg6+
{[%clk 0:00:08.7]} 64. Kh8 {[%clk 0:00:16.3]} 64... Qe6 {[%clk 0:00:08]} 65. Kg7
{[%clk 0:00:15.6]} 65... Qe7+ {[%clk 0:00:07.9]} 66. Kg8 {[%clk 0:00:15.3]}
66... Qe8+ {[%clk 0:00:08]} 67. Kg7 {[%clk 0:00:15.3]} 67... Qd7+ {[%clk
0:00:07.9]} 68. Kg8 {[%clk 0:00:15.3]} 68... Qg4+ {[%clk 0:00:08.2]} 69. Kh8
{[%clk 0:00:14.7]} 69... Qh5 {[%clk 0:00:06.3]} 70. Kg7 {[%clk 0:00:13.9]} 70...
Qg5+ {[%clk 0:00:05.7]} 71. Kh8 {[%clk 0:00:12]} 71... Qe5+ {[%clk 0:00:05.4]}
72. Kg8 {[%clk 0:00:11.9]} 72... Qe8+ {[%clk 0:00:05.4]} 73. Kg7 {[%clk
0:00:11.9]} 73... Qe7+ {[%clk 0:00:05]} 1/2-1/2